bitfinex/quotes_BTCUSD_20220211
["timestamp","ask_amount","ask_price","bid_price","bid_amount"]
[1644590437075,0.02043832,43499.0,43496.0,0.08744493]
[1644590437271,0.02043832,43499.0,43496.0,0.13744493]
[1644590437473,0.009209,43506.0,43505.0,0.31087928]
[1644590437669,0.009209,43506.0,43505.0,0.05]
[1644590437869,0.3,43527.0,43505.0,0.05]
[1644590438071,0.05748,43525.0,43499.0,0.18558543]
[1644590438271,0.172459,43523.0,43499.0,0.18558543]
[1644590438468,0.33463244,43511.0,43499.0,0.18558543]
[1644590438867,0.33463244,43511.0,43499.0,0.50762449]
[1644590439070,0.38463244,43511.0,43499.0,0.50762449]
[1644590439369,0.057494,43508.0,43502.0,0.07808824]
[1644590441415,0.057494,43508.0,43503.0,0.324321]
[1644590441618,0.057494,43508.0,43502.0,0.42365288]
[1644590441815,0.057485,43513.0,43510.0,0.08782948]
[1644590442020,0.057485,43513.0,43483.0,0.00296195]
[1644590442021,0.2,43500.0,43483.0,0.00296195]
[1644590442218,0.94001382,43499.0,43483.0,0.00296195]
[1644590442421,0.324291,43492.0,43483.0,0.00296195]
[1644590442618,0.080456,43490.0,43483.0,0.00296195]
[1644590442818,0.057534,43488.0,43483.0,0.00296195]
[1644590443017,0.324291,43486.0,43479.0,0.08236973]
[1644590443218,0.38645712,43491.0,43482.0,0.08258759]
[1644590443418,0.219495,43491.0,43490.0,0.08454008]
[1644590444217,0.119495,43491.0,43482.0,0.23498007]
[1644590444416,0.177023,43491.0,43482.0,0.23498007]
[1644590444976,0.11506599,43489.0,43482.0,0.324636]
[1644590445171,0.29000949,43487.0,43482.0,0.324636]
[1644590445371,0.29000949,43487.0,43484.0,0.07586389]
[1644590445372,0.115067,43487.0,43484.0,0.07586389]
[1644590445671,0.115067,43487.0,43478.0,0.29639673]
[1644590445871,0.115067,43487.0,43482.0,0.324636]
[1644590446071,0.115067,43487.0,43480.0,0.40168349]
[1644590446271,0.115067,43487.0,43482.0,0.324636]
[1644590446472,0.17259999,43487.0,43483.0,0.324636]
[1644590446670,0.17259999,43487.0,43484.0,0.08034301]
[1644590447372,0.057533,43486.0,43485.0,0.324636]
[1644590447771,0.057533,43486.0,43484.0,0.08034301]
[1644590448070,0.057533,43486.0,43485.0,0.324622]
[1644590449120,0.057533,43486.0,43485.0,0.61270372]
[1644590449323,0.172604,43488.0,43485.0,0.28808172]
[1644590449521,0.172604,43488.0,43484.0,0.37194335]
[1644590449723,0.230333,43486.0,43484.0,0.08034301]
[1644590449922,0.172604,43488.0,43484.0,0.08034301]
[1644590450521,0.172604,43488.0,43485.0,0.25758008]
[1644590451121,0.172604,43488.0,43484.0,0.08034301]
[1644590451323,0.172604,43488.0,43485.0,0.324622]
[1644590451724,2.09826187,43488.0,43485.0,0.324622]
[1644590452171,1.92565787,43488.0,43487.0,0.39258596]
[1644590452371,0.057531,43489.0,43487.0,0.324622]
[1644590452675,0.057531,43489.0,43485.0,0.324622]
[1644590452871,0.057531,43489.0,43486.0,0.2920568]
[1644590453073,0.11573971,43497.0,43487.0,0.324622]
[1644590453074,0.057516,43493.0,43487.0,0.324622]
[1644590453271,0.0575157,43496.0,43486.0,0.2920568]
[1644590453474,0.00069584,43497.0,43491.0,0.05]
[1644590453674,0.00069584,43497.0,43496.0,0.20355717]
[1644590453873,0.09064225,43508.0,43502.0,0.34718473]
[1644590454075,0.057498,43505.0,43503.0,0.324505]
[1644590454672,0.057494,43515.0,43497.0,0.6]
[1644590454874,1.0675,43527.0,43506.0,0.19179397]
[1644590455075,0.11497726,43521.0,43510.0,0.36678905]
[1644590455278,0.11497726,43521.0,43498.0,0.3]
[1644590455279,0.057485,43517.0,43498.0,0.3]
[1644590455475,0.057485,43517.0,43495.0,0.28861091]
[1644590455673,0.324505,43516.0,43496.0,0.3]
[1644590455917,0.324505,43516.0,43503.0,0.0875401]
[1644590456120,0.230469,43514.0,43491.0,0.34942671]
[1644590456317,0.230469,43514.0,43497.0,0.18678432]
[1644590456318,0.324505,43507.0,43497.0,0.18678432]
[1644590456521,0.12586106,43513.0,43492.0,0.00070255]
[1644590456522,0.00070228,43508.0,43493.0,0.324505]
[1644590456719,0.00070228,43508.0,43494.0,0.3]
[1644590456916,0.00070228,43508.0,43492.0,0.00070255]
[1644590457117,0.00070228,43508.0,43499.0,0.33645131]
[1644590457316,0.28752844,43515.0,43507.0,0.08675667]
[1644590457517,0.114993,43511.0,43507.0,0.08675667]
[1644590457718,0.057496,43512.0,43507.0,0.08675667]
[1644590457719,0.324505,43510.0,43507.0,0.08675667]
[1644590457920,0.229985,43528.0,43516.0,0.07869835]
[1644590458118,0.01,43529.0,43516.0,0.07869835]
[1644590458119,0.057482,43524.0,43516.0,0.07869835]
[1644590458316,0.057482,43524.0,43505.0,0.00019913]
[1644590458317,0.25641851,43518.0,43505.0,0.00019913]
[1644590458518,0.25641851,43518.0,43504.0,0.30019913]
[1644590458519,0.31390586,43518.0,43504.0,0.30019913]
[1644590458818,0.31390586,43518.0,43508.0,0.20401977]
[1644590459216,0.31390586,43518.0,43505.0,0.00019913]
[1644590459418,0.41390586,43518.0,43511.0,0.06537973]
[1644590459666,0.41390586,43518.0,43504.0,0.324505]
[1644590459866,0.41390586,43518.0,43493.0,0.114966]
[1644590459867,0.057488,43515.0,43493.0,0.114966]
[1644590460072,0.057488,43515.0,43481.0,0.96525104]
[1644590460073,1.063196,43514.0,43475.0,0.05750922]
[1644590460269,1.063196,43514.0,43476.0,0.21697704]
[1644590460270,0.057518,43500.0,43476.0,0.21697704]
[1644590460469,0.057518,43500.0,43470.0,0.0008056]
[1644590460470,0.75031337,43499.0,43482.0,0.32886944]
[1644590460666,0.324508,43498.0,43482.0,0.06373799]
[1644590460866,0.324508,43491.0,43482.0,0.06373799]
[1644590461068,0.17258777,43490.0,43474.0,0.00136964]
[1644590461269,0.05753,43489.0,43474.0,0.00136964]
[1644590461466,0.3,43488.0,43474.0,0.00136964]
[1644590461668,0.35,43488.0,43475.0,0.324508]
[1644590461866,0.35,43488.0,43474.0,0.00136964]
[1644590461867,0.05753,43485.0,43474.0,0.00136964]
[1644590462066,0.05754723,43478.0,43474.0,0.00136964]
[1644590462267,0.45427769,43477.0,43474.0,0.00136964]
[1644590462467,0.7,43476.0,43471.0,0.0111]
[1644590462668,0.30427769,43477.0,43471.0,0.0111]
[1644590462868,0.04510615,43477.0,43471.0,0.0111]
[1644590463721,0.04510615,43477.0,43471.0,0.36782292]
[1644590463922,0.04510615,43477.0,43473.0,0.29848834]
[1644590464522,0.42,43487.0,43473.0,0.29848834]
[1644590464722,0.00052022,43483.0,43473.0,0.29848834]
[1644590465024,0.00052022,43483.0,43479.0,0.26237358]
[1644590465224,0.00052022,43483.0,43471.0,0.0111]
[1644590465225,0.382084,43482.0,43471.0,0.0111]
[1644590465423,0.157527,43482.0,43471.0,0.0111]
[1644590465627,0.624557,43481.0,43471.0,0.0111]
[1644590465824,0.324557,43480.0,43471.0,0.0111]
[1644590466224,0.324557,43480.0,43473.0,0.01]
[1644590466225,0.38626253,43476.0,43473.0,0.01]
[1644590466424,0.56056414,43475.0,43473.0,0.01]
[1644590466624,0.28600714,43475.0,43473.0,0.01]
[1644590466827,0.207552,43475.0,43473.0,0.01]
[1644590467080,0.057552,43475.0,43473.0,0.01]
[1644590467471,0.057552,43475.0,43473.0,0.08087924]
[1644590467672,0.057552,43475.0,43474.0,0.27983212]
[1644590467871,0.324557,43491.0,43481.0,0.08460177]
[1644590468274,0.324557,43491.0,43474.0,0.5703343]
[1644590468472,0.324557,43491.0,43474.0,0.27983212]
[1644590468673,0.057532,43484.0,43474.0,0.57184242]
[1644590468874,0.05753522,43481.0,43474.0,0.27983212]
[1644590469074,0.057535,43482.0,43474.0,0.57101117]
[1644590469376,0.05,43481.0,43475.0,0.07225024]
[1644590469774,0.057535,43482.0,43475.0,0.07225024]
[1644590469974,0.057536,43481.0,43475.0,0.07225024]
[1644590470176,0.107536,43481.0,43475.0,0.07225024]
[1644590470378,0.05,43481.0,43475.0,0.07225024]
[1644590470577,0.057536,43480.0,43475.0,0.07225024]
[1644590470821,0.107536,43480.0,43475.0,0.07225024]
[1644590471417,0.39073258,43480.0,43475.0,0.07225024]
[1644590471617,0.39073258,43480.0,43473.0,0.01]
[1644590471817,0.49010832,43480.0,43473.0,0.01]
[1644590472020,0.49010832,43480.0,43475.0,0.00073413]
[1644590472217,0.20691174,43480.0,43475.0,0.00073413]
[1644590472817,0.10691174,43480.0,43475.0,0.00073413]
[1644590473018,0.057537,43479.0,43473.0,0.01]
[1644590473219,1.1,43477.0,43459.0,0.37606138]
[1644590473432,0.05,43469.0,43458.0,0.00141376]
[1644590473620,0.05,43461.0,43458.0,0.00141376]
[1644590473818,1.2120269,43468.0,43450.0,0.0023]
[1644590473819,0.7,43459.0,43450.0,0.0023]
[1644590474020,0.057586,43456.0,43450.0,0.0023]
[1644590474218,0.26963822,43453.0,43450.0,0.0023]
[1644590474419,0.55,43451.0,43445.0,0.0011]
[1644590474671,0.457587,43451.0,43434.0,0.0011]
[1644590474869,0.257587,43451.0,43439.0,0.02137853]
[1644590475075,0.257589,43451.0,43439.0,0.02137853]
[1644590475271,0.30497825,43440.0,43439.0,0.09391065]
[1644590475472,0.15147097,43446.0,43439.0,0.34503935]
[1644590475672,0.15147097,43446.0,43439.0,0.02137853]
[1644590475673,0.3,43445.0,43439.0,0.02137853]
[1644590475976,0.107591,43444.0,43439.0,0.02137853]
[1644590476374,0.107591,43444.0,43434.0,0.0011]
[1644590476375,1.1,43442.0,43434.0,0.0011]
[1644590476579,1.797351,43441.0,43435.0,0.00149416]
[1644590476778,1.0,43439.0,43427.0,0.0411]
[1644590476977,0.76155754,43438.0,43433.0,0.00288249]
[1644590477174,0.382157,43437.0,43427.0,0.0411]
[1644590477378,0.05760562,43436.0,43427.0,0.0411]
[1644590477575,0.1576,43437.0,43430.0,0.0011]
[1644590477576,0.4576,43437.0,43430.0,0.0011]
[1644590477878,0.4576,43437.0,43431.0,0.33551947]
[1644590477879,0.057604,43435.0,43431.0,0.33551947]
[1644590478323,0.3,43442.0,43437.0,0.35637035]
[1644590478324,0.324557,43441.0,43437.0,0.35637035]
[1644590478525,0.05759193,43441.0,43438.0,0.0711237]
[1644590478723,0.05759193,43441.0,43439.0,0.32637874]
[1644590478724,0.057594,43440.0,43439.0,0.32637874]
[1644590478925,0.39718668,43446.0,43439.0,0.5714043]
[1644590478926,0.22437602,43446.0,43439.0,0.5714043]
[1644590479123,0.415152,43449.0,43445.0,0.01]
[1644590479322,0.415152,43449.0,43448.0,0.07671095]
[1644590479323,0.115152,43449.0,43448.0,0.07671095]
[1644590479824,0.324557,43449.0,43448.0,0.07671095]
[1644590480123,0.314557,43449.0,43448.0,0.07671095]
[1644590480324,0.25275834,43449.0,43448.0,0.07671095]
[1644590481127,0.30275834,43449.0,43448.0,0.07671095]
[1644590481723,0.35275834,43449.0,43448.0,0.07671095]
[1644590481924,0.1,43449.0,43448.0,0.07671095]
[1644590482200,0.215151,43450.0,43448.0,0.07671095]
[1644590482400,0.215151,43450.0,43449.0,0.40069798]
[1644590482601,0.1,43450.0,43449.0,0.40069798]
[1644590482801,0.05,43450.0,43449.0,0.74408717]
[1644590482997,0.05,43450.0,43448.0,0.07671095]
[1644590483199,0.05,43450.0,43449.0,0.01023]
[1644590483398,0.10831354,43451.0,43449.0,0.01023]
[1644590483399,0.05831354,43451.0,43449.0,0.01023]
[1644590483599,0.05831354,43451.0,43448.0,0.07671095]
[1644590483805,0.73557726,43450.0,43433.0,0.01]
[1644590484000,0.324565,43444.0,43439.0,0.38059241]
[1644590484203,0.324565,43442.0,43439.0,0.38059241]
[1644590484500,0.2902318,43443.0,43439.0,0.38059241]
[1644590484501,0.324565,43441.0,43439.0,0.38059241]
[1644590484701,0.374565,43440.0,43433.0,0.01]
[1644590484903,0.38217,43439.0,43433.0,0.01]
[1644590485099,0.0576,43437.0,43433.0,0.01]
[1644590485303,0.0576,43437.0,43433.0,0.33499566]
[1644590485499,0.11573076,43439.0,43434.0,0.010254]
[1644590485702,0.0581296,43439.0,43437.0,0.34207793]
[1644590485923,0.0581296,43439.0,43438.0,0.020248]
[1644590485924,0.0005246,43439.0,43438.0,0.020248]
[1644590486327,0.3,43458.0,43438.0,0.010248]
[1644590486524,0.33670299,43449.0,43445.0,0.06548958]
[1644590486726,0.00072544,43441.0,43437.0,0.34207793]
[1644590487123,0.00072544,43441.0,43433.0,0.01]
[1644590487124,0.324565,43440.0,43433.0,0.01]
[1644590487326,0.00072544,43441.0,43434.0,0.010252]
[1644590487525,0.3008548,43440.0,43433.0,0.01]
[1644590487729,0.057596,43438.0,43433.0,0.01]
[1644590487925,0.138516,43438.0,43433.0,0.01]
[1644590488226,0.08092,43438.0,43433.0,0.01]
[1644590488425,0.08092,43438.0,43434.0,0.08683769]
[1644590488426,0.324565,43437.0,43434.0,0.08683769]
[1644590488624,0.05,43437.0,43433.0,0.01]
[1644590488828,0.15,43437.0,43433.0,0.01]
[1644590489226,0.2,43437.0,43433.0,0.01]
[1644590489429,0.257596,43437.0,43433.0,0.01]
[1644590489870,0.057596,43437.0,43433.0,0.01]
[1644590490069,0.15744214,43446.0,43433.0,0.01]
[1644590490270,0.15744214,43446.0,43434.0,0.01]
[1644590490271,0.00071182,43437.0,43434.0,0.01]
[1644590490871,0.00071182,43437.0,43436.0,0.010251]
[1644590491070,0.00071182,43437.0,43435.0,0.56092359]
[1644590491270,0.057581,43449.0,43435.0,0.56092359]
[1644590491475,0.23054438,43450.0,43447.0,0.08938798]
[1644590491672,0.43687663,43450.0,43438.0,0.01]
[1644590491868,0.43687663,43450.0,43444.0,0.5]
[1644590492071,0.59445263,43450.0,43444.0,0.5]
[1644590492268,0.49445263,43450.0,43446.0,0.29708445]
[1644590492472,0.23054438,43450.0,43448.0,0.01]
[1644590492670,0.00071176,43449.0,43448.0,0.01]
[1644590492870,0.32527676,43449.0,43448.0,0.07582587]
[1644590493071,0.00071176,43449.0,43448.0,0.07582587]
[1644590493319,0.32527676,43449.0,43448.0,0.06582587]
[1644590493521,0.324565,43449.0,43448.0,0.06582587]
[1644590494321,0.324565,43448.0,43445.0,0.00019875]
[1644590494521,0.324565,43448.0,43447.0,0.01]
[1644590494722,0.11516,43449.0,43447.0,0.01]
[1644590494922,0.324565,43448.0,43447.0,0.01]
[1644590495124,0.324565,43448.0,43431.0,0.00059731]
[1644590495125,0.01403276,43440.0,43431.0,0.00059731]
[1644590495322,0.01403276,43440.0,43438.0,0.21090156]
[1644590495521,0.11586372,43449.0,43438.0,0.21090156]
[1644590495522,0.057575,43448.0,43439.0,0.710247]
[1644590495722,0.057575,43448.0,43439.0,0.7]
[1644590496022,0.115145,43454.0,43441.0,0.05]
[1644590496223,0.35,43462.0,43459.0,0.08933337]
[1644590496423,0.05,43462.0,43458.0,0.06945684]
[1644590496629,0.05,43462.0,43447.0,0.2162478]
[1644590496824,0.057566,43455.0,43448.0,0.26597712]
[1644590497284,0.057566,43455.0,43440.0,0.010237]
[1644590497488,0.057573,43454.0,43446.0,0.35840307]
[1644590497686,0.057573,43454.0,43448.0,0.07918261]
[1644590498087,0.057573,43454.0,43430.0,0.0011]
[1644590498088,0.2,43443.0,43421.0,0.01]
[1644590498288,0.2,43443.0,43428.0,0.20170123]
[1644590498289,0.66248252,43436.0,43428.0,0.20170123]
[1644590498485,0.3173613,43435.0,43428.0,0.20170123]
[1644590498685,0.324565,43434.0,43428.0,0.0011]
[1644590498886,0.498035,43434.0,43427.0,0.0389]
[1644590499088,0.05762085,43429.0,43421.0,0.0023]
[1644590499291,0.71520031,43427.0,43421.0,0.0012]
[1644590499488,0.057626,43426.0,43421.0,0.0012]
[1644590499691,0.324577,43425.0,43421.0,0.0012]
[1644590499889,0.324577,43425.0,43406.0,0.0011]
[1644590499890,0.324577,43424.0,43406.0,0.0011]
[1644590500090,0.05763,43421.0,43419.0,0.00131616]
[1644590500395,0.81494284,43420.0,43419.0,0.00131616]
[1644590500591,0.32146434,43420.0,43419.0,0.32459316]
[1644590500825,0.24371308,43421.0,43419.0,0.32459316]
[1644590500826,0.136083,43421.0,43419.0,1.616e-05]
[1644590501021,0.057623,43421.0,43419.0,1.616e-05]
[1644590501329,0.11524427,43421.0,43419.0,1.616e-05]
[1644590501527,0.324577,43420.0,43419.0,1.616e-05]
[1644590501721,0.057623,43421.0,43419.0,1.616e-05]
[1644590501928,0.03298068,43434.0,43420.0,0.7]
[1644590502126,0.230452,43443.0,43426.0,0.05]
[1644590502127,0.14006899,43443.0,43426.0,0.05]
[1644590502322,0.00073636,43434.0,43427.0,0.624577]
[1644590502521,0.00073636,43434.0,43428.0,0.66047515]
[1644590502722,0.00073636,43434.0,43422.0,0.05758465]
[1644590502923,0.00073636,43434.0,43419.0,0.01001616]
[1644590502924,0.324577,43433.0,43419.0,0.01001616]
[1644590503523,0.057601,43432.0,43426.0,0.00021104]
[1644590503722,0.28469268,43439.0,43428.0,0.07963738]
[1644590503921,0.1,43438.0,43436.0,0.08059222]
[1644590504121,0.324577,43443.0,43426.0,0.00021104]
[1644590504327,0.324577,43436.0,43426.0,0.00021104]
[1644590504581,0.324577,43436.0,43429.0,0.00021103]
[1644590504582,0.382182,43434.0,43429.0,0.00021103]
[1644590504780,0.057603,43433.0,43429.0,0.00021103]
[1644590505179,0.057603,43433.0,43429.0,0.08985632]
[1644590505378,0.057603,43433.0,43418.0,0.00084432]
[1644590505379,0.324577,43432.0,43418.0,0.00084432]
[1644590505581,0.057618,43429.0,43410.0,0.3]
[1644590505780,0.19133927,43428.0,43405.0,0.00077574]
[1644590505979,0.057617,43426.0,43405.0,0.00077574]
[1644590506380,0.230469,43427.0,43420.0,0.48771851]
[1644590506579,0.324577,43426.0,43420.0,0.48771851]
[1644590506779,0.424577,43426.0,43420.0,0.48771851]
[1644590506978,0.324577,43425.0,43420.0,0.48771851]
[1644590507382,0.057616,43422.0,43420.0,0.48771851]
[1644590507779,0.324577,43421.0,43420.0,0.48771851]
[1644590507980,0.057616,43422.0,43420.0,0.48771851]
[1644590509320,0.055616,43422.0,43420.0,0.48771851]
[1644590509920,0.055616,43422.0,43419.0,0.01070306]
[1644590510321,0.113234,43422.0,43419.0,0.01070306]
[1644590510520,0.113234,43422.0,43419.0,0.01]
[1644590510728,0.113234,43422.0,43412.0,0.00281269]
[1644590510729,0.057626,43419.0,43412.0,0.00281269]
[1644590510925,0.81264515,43418.0,43412.0,0.00300698]
[1644590511223,0.16515597,43418.0,43412.0,0.00281269]
[1644590511426,0.16515597,43418.0,43413.0,0.27664354]
[1644590511626,0.25390797,43427.0,43421.0,0.34517342]
[1644590511826,0.324577,43426.0,43413.0,0.00019429]
[1644590512068,0.324577,43426.0,43411.0,0.01]
[1644590512069,0.11522,43430.0,43415.0,0.31403741]
[1644590512276,0.11522,43430.0,43411.0,0.01]
[1644590512468,0.05,43429.0,43415.0,0.20721838]
[1644590512669,0.11522,43430.0,43415.0,0.20721838]
[1644590512868,0.11522,43430.0,43420.0,0.26457258]
[1644590512869,0.324577,43428.0,43420.0,0.26457258]
[1644590513069,0.057612,43425.0,43420.0,0.26457258]
[1644590513273,0.115209,43434.0,43431.0,0.08810043]
[1644590513471,0.115209,43434.0,43421.0,0.00019429]
[1644590513472,0.324577,43433.0,43421.0,0.00019429]
[1644590513669,0.115209,43434.0,43421.0,0.00019429]
[1644590513873,0.15733097,43441.0,43420.0,0.26457258]
[1644590514072,0.057598,43436.0,43427.0,0.25039812]
[1644590514274,0.057598,43436.0,43415.0,0.1]
[1644590514275,0.6,43428.0,43412.0,0.00019429]
[1644590514475,0.6,43428.0,43420.0,0.00019429]
[1644590514476,0.324577,43424.0,43420.0,0.00019429]
[1644590514675,0.324577,43421.0,43405.0,0.00161968]
[1644590514880,0.324577,43419.0,43401.0,0.0122]
[1644590515188,0.115274,43413.0,43406.0,0.26028429]
[1644590515375,0.324577,43412.0,43401.0,0.0122]
[1644590515580,0.324577,43412.0,43404.0,0.080317]
[1644590515827,0.057638,43411.0,43404.0,0.080317]
[1644590516021,0.057638,43411.0,43404.0,0.324577]
[1644590516222,0.11526286,43421.0,43401.0,0.0122]
[1644590516223,0.3,43420.0,43414.0,0.07042221]
[1644590516421,0.3,43420.0,43401.0,0.30901964]
[1644590516422,0.057621,43417.0,43401.0,0.30901964]
[1644590516621,0.057621,43417.0,43408.0,0.19383014]
[1644590516822,0.057626,43414.0,43401.0,0.0122]
[1644590517024,0.05,43405.0,43385.0,3.74084114]
[1644590517222,0.324577,43403.0,43385.0,3.74084114]
[1644590517428,0.115278,43406.0,43383.0,0.0013]
[1644590517429,0.057654,43397.0,43383.0,0.0013]
[1644590517723,0.151614,43397.0,43385.0,0.324577]
[1644590517927,1.05,43391.0,43374.0,0.0027]
[1644590518127,0.076421,43393.0,43374.0,0.0003244]
[1644590518128,0.05,43382.0,43374.0,0.0003244]
[1644590518325,0.14463466,43381.0,43374.0,0.0003244]
[1644590518922,0.14463466,43381.0,43377.0,0.32003166]
[1644590519123,0.14463466,43381.0,43377.0,0.31503166]
[1644590519324,0.14463466,43381.0,43374.0,6.277e-05]
[1644590519325,0.95,43377.0,43374.0,6.277e-05]
[1644590519580,0.95,43377.0,43374.0,8.8e-06]
[1644590519581,0.05,43375.0,43374.0,8.8e-06]
[1644590520180,0.3,43380.0,43368.0,0.00241475]
[1644590520381,0.0387,43385.0,43368.0,0.00241475]
[1644590520382,0.057684,43377.0,43369.0,0.324577]
[1644590520580,0.057684,43377.0,43368.0,0.00241475]
[1644590520781,0.05,43369.0,43368.0,0.00241475]
[1644590520983,0.089,43369.0,43368.0,0.00241475]
[1644590521382,0.146694,43369.0,43368.0,0.00241475]
[1644590521584,0.146694,43369.0,43366.0,0.01741475]
[1644590521981,0.146694,43369.0,43368.0,0.07935845]
[1644590522184,0.05769339,43373.0,43368.0,0.07935845]
[1644590522185,0.33368543,43384.0,43369.0,0.5]
[1644590522382,0.18286437,43389.0,43368.0,0.3898273]
[1644590522383,0.3,43382.0,43368.0,0.29966285]
[1644590522685,0.2995,43385.0,43373.0,0.29278564]
[1644590522882,0.55546357,43385.0,43373.0,0.29278564]
[1644590523082,0.057671,43383.0,43373.0,0.29278564]
[1644590523332,0.23088657,43385.0,43372.0,0.3]
[1644590523333,0.23088657,43385.0,43383.0,0.08614339]
[1644590523526,0.3264616,43388.0,43366.0,0.01741475]
[1644590523527,0.324577,43384.0,43366.0,0.01741475]
[1644590523724,0.49769581,43384.0,43366.0,0.01741475]
[1644590523924,0.49769581,43384.0,43367.0,0.00068978]
[1644590524125,0.11535,43382.0,43367.0,0.00068978]
[1644590524324,0.28425189,43381.0,43375.0,0.36147165]
[1644590524525,0.3,43382.0,43363.0,0.02219538]
[1644590524727,0.3,43382.0,43356.0,0.0027598]
[1644590524728,0.05,43364.0,43361.0,0.01]
[1644590524930,0.49629574,43363.0,43361.0,0.01]
[1644590525229,0.057708,43362.0,43352.0,0.184231]
[1644590525426,0.02636,43373.0,43351.0,0.0067]
[1644590525427,0.3,43369.0,43351.0,0.0067]
[1644590525624,0.3,43372.0,43371.0,0.084889]
[1644590525829,0.324685,43372.0,43371.0,0.084889]
[1644590526027,0.324685,43372.0,43360.0,0.06584127]
[1644590526028,0.169778,43367.0,43360.0,0.06584127]
[1644590526426,0.169778,43367.0,43362.0,0.21667333]
[1644590526631,0.057694,43373.0,43362.0,0.21667333]
[1644590526826,0.057694,43373.0,43371.0,0.72622371]
[1644590527073,0.324675,43391.0,43371.0,0.72622371]
[1644590527273,0.057673,43388.0,43372.0,0.3]
[1644590527478,0.05,43374.0,43360.0,0.3]
[1644590527676,0.115418,43361.0,43343.0,0.0013975]
[1644590527879,0.17181425,43362.0,43352.0,0.24196]
[1644590528074,0.14092865,43369.0,43343.0,0.0013975]
[1644590528274,0.14092865,43369.0,43361.0,0.08822928]
[1644590528473,0.057687,43369.0,43365.0,0.69032533]
[1644590528676,0.115376,43373.0,43366.0,0.324683]
[1644590528877,0.324683,43381.0,43365.0,0.69032533]
[1644590529077,0.05,43392.0,43388.0,0.08302237]
[1644590529276,0.1,43395.0,43366.0,0.3]
[1644590529277,0.324683,43388.0,43366.0,0.3]
[1644590529477,0.324683,43374.0,43366.0,0.3]
[1644590529678,0.259054,43388.0,43366.0,0.3]
[1644590529679,0.11534,43387.0,43368.0,0.6]
[1644590529877,0.324684,43386.0,43369.0,0.3]
[1644590530074,0.173027,43390.0,43368.0,0.00019395]
[1644590530075,0.173027,43390.0,43368.0,0.324684]
[1644590530285,0.173027,43390.0,43389.0,0.0681866]
[1644590530480,0.057661,43389.0,43379.0,0.27912083]
[1644590530675,0.324684,43387.0,43386.0,0.29165722]
[1644590530925,0.057661,43389.0,43386.0,0.29165722]
[1644590531125,0.115322,43395.0,43386.0,0.29165722]
[1644590531327,0.173006,43396.0,43386.0,0.29165722]
[1644590531524,0.173006,43396.0,43387.0,0.08825992]
[1644590531525,0.057655,43393.0,43387.0,0.08825992]
[1644590531726,0.057655,43393.0,43387.0,0.08845387]
[1644590531925,0.115307,43401.0,43388.0,0.29728163]
[1644590532128,0.012616,43395.0,43388.0,0.29728163]
[1644590532326,0.002616,43395.0,43388.0,0.00019395]
[1644590532526,0.002616,43395.0,43387.0,0.14107245]
[1644590532527,0.057656,43393.0,43387.0,0.14107245]
[1644590532726,0.324571,43392.0,43388.0,0.07317551]
[1644590532926,0.23092635,43391.0,43388.0,0.07317551]
[1644590533525,0.057656,43393.0,43389.0,0.324571]
[1644590533726,0.00073539,43392.0,43388.0,0.07317551]
[1644590534678,0.057656,43393.0,43388.0,0.07317551]
[1644590534877,0.00073538,43392.0,43388.0,0.07317551]
[1644590535876,0.115289,43407.0,43388.0,0.12317551]
[1644590536076,0.172932,43407.0,43403.0,0.06702663]
[1644590536276,0.172932,43407.0,43402.0,0.30084379]
[1644590536277,0.72034844,43401.0,43394.0,0.34100294]
[1644590536476,0.72034844,43401.0,43395.0,0.32476495]
[1644590536681,0.27276249,43407.0,43403.0,0.21503336]
[1644590536886,0.15747349,43407.0,43404.0,0.324571]
[1644590537076,0.01,43409.0,43403.0,0.21503336]
[1644590537278,0.01,43409.0,43404.0,0.324571]
[1644590537477,0.01,43409.0,43405.0,0.07202934]
[1644590537677,0.01,43409.0,43407.0,0.38402932]
[1644590537878,0.057626,43417.0,43405.0,0.07202934]
[1644590538078,0.057626,43417.0,43407.0,0.34385068]
[1644590538079,0.324571,43415.0,43407.0,0.34385068]
[1644590538333,0.324571,43415.0,43405.0,0.07202934]
[1644590538524,0.324571,43415.0,43398.0,0.00019395]
[1644590538729,0.324571,43409.0,43399.0,0.00019395]
[1644590538926,0.057645,43407.0,43399.0,0.31971476]
[1644590539126,0.324571,43406.0,43399.0,0.31971476]
[1644590539326,0.324571,43406.0,43400.0,0.33808436]
[1644590539528,0.324571,43406.0,43402.0,0.06751392]
[1644590539725,0.324571,43406.0,43401.0,0.26751392]
[1644590539726,0.00068718,43405.0,43401.0,0.26751392]
[1644590539927,0.324571,43404.0,43400.0,0.33808436]
[1644590540128,0.00068718,43405.0,43400.0,0.33808436]
[1644590540528,0.057624,43421.0,43400.0,0.43808436]
[1644590540728,0.057624,43421.0,43420.0,0.07747048]
[1644590541328,0.05762,43422.0,43420.0,0.07747048]
[1644590541527,0.05762,43422.0,43421.0,0.62782947]
[1644590541726,0.46367162,43432.0,43420.0,0.39432909]
[1644590541727,0.230454,43430.0,43420.0,0.39432909]
[1644590541928,0.057613,43425.0,43409.0,0.3]
[1644590542175,0.324571,43416.0,43404.0,0.00019395]
[1644590542377,0.23071744,43417.0,43403.0,0.00019395]
[1644590542575,0.12201313,43420.0,43402.0,0.01]
[1644590542774,0.35253513,43420.0,43403.0,0.27973298]
[1644590542975,0.324571,43420.0,43416.0,0.08904911]
[1644590543176,0.165259,43419.0,43405.0,0.2]
[1644590543377,0.00069033,43413.0,43404.0,0.00019395]
[1644590543578,0.00069033,43413.0,43402.0,0.01]
[1644590543579,0.12437782,43412.0,43403.0,0.00019395]
[1644590543875,0.432208,43411.0,43403.0,0.00019395]
[1644590544178,0.28291756,43408.0,43402.0,0.3877401]
[1644590544376,0.60748856,43408.0,43407.0,0.08089471]
[1644590544578,1.424571,43407.0,43397.0,0.00019395]
[1644590544776,1.424571,43407.0,43375.0,0.25]
[1644590544777,0.096362,43406.0,43375.0,0.25]
[1644590544975,0.115336,43401.0,43375.0,0.25]
[1644590545176,0.324571,43400.0,43381.0,0.0073]
[1644590545377,0.324571,43400.0,43385.0,0.45345525]